[Event "January 2 Late 2024"]
[Site "https://www.chess.com"]
[Date "2024.01.02"]
[Round "11"]
[White "Novak, Ratko"]
[Black "th3d4rkness"]
[Result "1-0"]
[Board "112"]
[TimeControl "180+1"]
[WhiteFideId "14511827"]
[WhiteElo "2363"]
[BlackElo "2177"]
[WhiteTeam "CRO"]
[WhiteClock "0:00:49"]
[BlackClock "0:00:11"]

1. d4 {[%clk 0:03:00]}  Nf6 {[%clk 0:02:59]} 2. c4 {[%clk 0:02:58]}  g6 {[%clk 0:02:58]} 3. Nc3 {[%clk 0:02:58]}  d5 {[%clk 0:02:58]} 4. f3 {[%clk 0:02:58]}  Bg7 {[%clk 0:02:46]} 5. e4 {[%clk 0:02:58]}  dxe4 {[%clk 0:02:45]} 6. fxe4 {[%clk 0:02:58]}  e5 {[%clk 0:02:45]} 7. d5 {[%clk 0:02:58]}  O-O {[%clk 0:02:37]} 8. Be2 {[%clk 0:02:58]}  a5 {[%clk 0:02:33]} 9. Be3 {[%clk 0:02:54]}  b6 {[%clk 0:02:28]} 10. Qd2 {[%clk 0:02:53]}  Ng4 {[%clk 0:02:25]} 11. Bxg4 {[%clk 0:02:49]}  Bxg4 {[%clk 0:02:25]} 12. Nf3 {[%clk 0:02:48]}  Nd7 {[%clk 0:02:11]} 13. O-O {[%clk 0:02:47]}  Nc5 {[%clk 0:01:53]} 14. Bxc5 {[%clk 0:02:24]}  bxc5 {[%clk 0:01:53]} 15. Qe3 {[%clk 0:02:25]}  Qe7 {[%clk 0:01:47]} 16. Na4 {[%clk 0:02:23]}  Rab8 {[%clk 0:01:34]} 17. b3 {[%clk 0:02:22]}  f5 {[%clk 0:01:28]} 18. Qxc5 {[%clk 0:02:16]}  Qxc5+ {[%clk 0:01:25]} 19. Nxc5 {[%clk 0:02:15]}  fxe4 {[%clk 0:01:12]} 20. Nxe4 {[%clk 0:02:14]}  Bf5 {[%clk 0:01:10]} 21. Rae1 {[%clk 0:02:13]}  a4 {[%clk 0:01:09]} 22. Nc5 {[%clk 0:01:57]}  axb3 {[%clk 0:01:06]} 23. axb3 {[%clk 0:01:57]}  Rfe8 {[%clk 0:01:03]} 24. Nd2 {[%clk 0:01:48]}  e4 {[%clk 0:00:44]} 25. Ncxe4 {[%clk 0:01:35]}  Bd4+ {[%clk 0:00:43]} 26. Kh1 {[%clk 0:01:35]}  Bxe4 {[%clk 0:00:43]} 27. Nxe4 {[%clk 0:01:24]}  Kg7 {[%clk 0:00:30]} 28. Ng5 {[%clk 0:01:15]}  Bc3 {[%clk 0:00:23]} 29. Rxe8 {[%clk 0:01:09]}  Rxe8 {[%clk 0:00:22]} 30. Ne6+ {[%clk 0:01:09]}  Kh6 {[%clk 0:00:22]} 31. Nxc7 {[%clk 0:01:09]}  Rb8 {[%clk 0:00:16]} 32. Nb5 {[%clk 0:01:08]}  Bb4 {[%clk 0:00:17]} 33. g3 {[%clk 0:01:08]}  Ra8 {[%clk 0:00:15]} 34. d6 {[%clk 0:01:07]}  Ra2 {[%clk 0:00:14]} 35. Rd1 {[%clk 0:01:05]}  Bxd6 {[%clk 0:00:13]} 36. Nxd6 {[%clk 0:01:04]}  Rb2 {[%clk 0:00:14]} 37. Rd3 {[%clk 0:01:03]}  Kg5 {[%clk 0:00:13]} 38. h3 {[%clk 0:01:00]}  Kf6 {[%clk 0:00:13]} 39. c5 {[%clk 0:00:58]}  Ke6 {[%clk 0:00:13]} 40. Nc4 {[%clk 0:00:54]}  Rb1+ {[%clk 0:00:12]} 41. Kg2 {[%clk 0:00:53]}  h5 {[%clk 0:00:11]} 42. c6 {[%clk 0:00:52]}  Rc1 {[%clk 0:00:11]} 43. c7 {[%clk 0:00:51]}  Rc2+ {[%clk 0:00:11]} 44. Rd2 {[%clk 0:00:49]}  Rc3 {[%clk 0:00:11]} 1-0

[Event "January 2 Late 2024"]
[Site "https://www.chess.com"]
[Date "2024.01.02"]
[Round "11"]
[White "Clarke, Matthew"]
[Black "Poddubnyi, Viktor"]
[Result "0-1"]
[Board "114"]
[TimeControl "180+1"]
[WhiteFideId "3227804"]
[BlackFideId "4141989"]
[WhiteElo "2161"]
[BlackElo "2332"]
[WhiteTeam "AUS"]
[BlackTeam "RUS"]
[WhiteClock "0:00:28"]
[BlackClock "0:00:37"]

1. d4 {[%clk 0:03:00]}  g6 {[%clk 0:03:00]} 2. e4 {[%clk 0:03:00]}  Bg7 {[%clk 0:03:00]} 3. Nc3 {[%clk 0:02:59]}  d6 {[%clk 0:03:01]} 4. Be3 {[%clk 0:03:00]}  a6 {[%clk 0:03:01]} 5. a4 {[%clk 0:02:58]}  Nc6 {[%clk 0:03:00]} 6. h3 {[%clk 0:02:57]}  Nf6 {[%clk 0:03:00]} 7. Nf3 {[%clk 0:02:56]}  O-O {[%clk 0:02:57]} 8. Be2 {[%clk 0:02:57]}  e5 {[%clk 0:02:41]} 9. O-O {[%clk 0:02:57]}  exd4 {[%clk 0:02:30]} 10. Nxd4 {[%clk 0:02:58]}  Re8 {[%clk 0:02:31]} 11. Bf3 {[%clk 0:02:57]}  Ne5 {[%clk 0:02:28]} 12. Be2 {[%clk 0:02:56]}  Bd7 {[%clk 0:02:18]} 13. f4 {[%clk 0:02:56]}  Nc6 {[%clk 0:02:17]} 14. Bf3 {[%clk 0:02:57]}  Nxd4 {[%clk 0:02:15]} 15. Bxd4 {[%clk 0:02:58]}  Bc6 {[%clk 0:02:16]} 16. Re1 {[%clk 0:02:58]}  Nd7 {[%clk 0:02:11]} 17. Bf2 {[%clk 0:02:47]}  Bxc3 {[%clk 0:01:37]} 18. bxc3 {[%clk 0:02:48]}  Qe7 {[%clk 0:01:34]} 19. Qd4 {[%clk 0:02:36]}  a5 {[%clk 0:01:31]} 20. h4 {[%clk 0:02:22]}  h5 {[%clk 0:01:26]} 21. Re2 {[%clk 0:01:53]}  Nc5 {[%clk 0:01:12]} 22. f5 {[%clk 0:01:44]}  Nd7 {[%clk 0:01:01]} 23. fxg6 {[%clk 0:01:42]}  fxg6 {[%clk 0:01:01]} 24. Re3 {[%clk 0:01:30]}  Ne5 {[%clk 0:01:00]} 25. Be2 {[%clk 0:01:09]}  Kh7 {[%clk 0:00:57]} 26. Re1 {[%clk 0:00:55]}  b6 {[%clk 0:00:55]} 27. Rg3 {[%clk 0:00:55]}  Rf8 {[%clk 0:00:43]} 28. Be3 {[%clk 0:00:54]}  Qxh4 {[%clk 0:00:38]} 29. Rh3 {[%clk 0:00:28]}  Qxe1+ {[%clk 0:00:37]} 0-1

[Event "January 2 Late 2024"]
[Site "https://www.chess.com"]
[Date "2024.01.02"]
[Round "11"]
[White "Zampronha, Wladimir Camilo"]
[Black "Dias, Joao Batista"]
[Result "1-0"]
[Board "115"]
[TimeControl "180+1"]
[WhiteFideId "2103087"]
[BlackFideId "2108240"]
[WhiteElo "2331"]
[BlackElo "2035"]
[WhiteTeam "BRA"]
[BlackTeam "BRA"]
[WhiteClock "0:01:09"]
[BlackClock "0:01:47"]

1. e4 {[%clk 0:03:00]}  g6 {[%clk 0:02:58]} 2. d4 {[%clk 0:02:59]}  Bg7 {[%clk 0:02:59]} 3. Nf3 {[%clk 0:02:57]}  c5 {[%clk 0:03:00]} 4. d5 {[%clk 0:02:55]}  d6 {[%clk 0:02:59]} 5. c4 {[%clk 0:02:54]}  Nf6 {[%clk 0:03:00]} 6. Nc3 {[%clk 0:02:55]}  O-O {[%clk 0:03:00]} 7. Bd3 {[%clk 0:02:55]}  a6 {[%clk 0:03:01]} 8. O-O {[%clk 0:02:53]}  Bg4 {[%clk 0:03:00]} 9. h3 {[%clk 0:02:52]}  Bxf3 {[%clk 0:03:01]} 10. Qxf3 {[%clk 0:02:52]}  Nbd7 {[%clk 0:03:01]} 11. Qe2 {[%clk 0:02:53]}  Ne5 {[%clk 0:03:01]} 12. Bc2 {[%clk 0:02:52]}  Ned7 {[%clk 0:03:01]} 13. Bd2 {[%clk 0:02:48]}  Rb8 {[%clk 0:02:56]} 14. Rae1 {[%clk 0:02:44]}  Re8 {[%clk 0:02:45]} 15. f4 {[%clk 0:02:43]}  e6 {[%clk 0:02:44]} 16. dxe6 {[%clk 0:02:41]}  fxe6 {[%clk 0:02:44]} 17. Qf3 {[%clk 0:02:24]}  Rf8 {[%clk 0:02:43]} 18. Qd3 {[%clk 0:02:08]}  Qc7 {[%clk 0:02:35]} 19. Rf3 {[%clk 0:02:01]}  Nb6 {[%clk 0:02:34]} 20. b3 {[%clk 0:01:56]}  Rbd8 {[%clk 0:02:34]} 21. f5 {[%clk 0:01:48]}  exf5 {[%clk 0:02:31]} 22. exf5 {[%clk 0:01:48]}  d5 {[%clk 0:02:17]} 23. cxd5 {[%clk 0:01:36]}  Nfxd5 {[%clk 0:02:14]} 24. Nxd5 {[%clk 0:01:36]}  Nxd5 {[%clk 0:02:13]} 25. fxg6 {[%clk 0:01:30]}  Nb4 {[%clk 0:02:11]} 26. Qc4+ {[%clk 0:01:23]}  Kh8 {[%clk 0:02:11]} 27. Bc3 {[%clk 0:01:22]}  Nxc2 {[%clk 0:02:08]} 28. Bxg7+ {[%clk 0:01:20]}  Qxg7 {[%clk 0:02:08]} 29. Rxf8+ {[%clk 0:01:18]}  Rxf8 {[%clk 0:02:06]} 30. Qxc2 {[%clk 0:01:19]}  Qxg6 {[%clk 0:02:05]} 31. Qxc5 {[%clk 0:01:17]}  Qf6 {[%clk 0:02:01]} 32. Qe5 {[%clk 0:01:15]}  Kg7 {[%clk 0:01:57]} 33. Qxf6+ {[%clk 0:01:13]}  Rxf6 {[%clk 0:01:57]} 34. Re7+ {[%clk 0:01:14]}  Rf7 {[%clk 0:01:56]} 35. Rxf7+ {[%clk 0:01:13]}  Kxf7 {[%clk 0:01:57]} 36. Kf2 {[%clk 0:01:14]}  Kg6 {[%clk 0:01:58]} 37. Kf3 {[%clk 0:01:13]}  Kf5 {[%clk 0:01:59]} 38. g4+ {[%clk 0:01:12]}  Kg5 {[%clk 0:01:59]} 39. Kg3 {[%clk 0:01:12]}  Kg6 {[%clk 0:01:55]} 40. Kf4 {[%clk 0:01:10]}  b5 {[%clk 0:01:52]} 41. b4 {[%clk 0:01:09]}  Kf6 {[%clk 0:01:52]} 42. h4 {[%clk 0:01:09]}  Kg6 {[%clk 0:01:47]} 43. Ke5 {[%clk 0:01:09]} 1-0

[Event "January 2 Late 2024"]
[Site "https://www.chess.com"]
[Date "2024.01.02"]
[Round "11"]
[White "Korol, Dimitry"]
[Black "Alves Campelo, Danilo Cesar De L"]
[Result "1-0"]
[Board "116"]
[TimeControl "180+1"]
[WhiteFideId "14108003"]
[BlackFideId "2123657"]
[WhiteElo "2326"]
[BlackElo "1979"]
[WhiteTeam "UKR"]
[BlackTeam "BRA"]
[WhiteClock "0:02:58"]
[BlackClock "0:01:31"]

1. d4 {[%clk 0:03:00]}  Nf6 {[%clk 0:02:58]} 2. c4 {[%clk 0:03:01]}  e6 {[%clk 0:02:57]} 3. Nc3 {[%clk 0:03:01]}  c5 {[%clk 0:02:58]} 4. d5 {[%clk 0:03:01]}  exd5 {[%clk 0:02:58]} 5. cxd5 {[%clk 0:03:02]}  d6 {[%clk 0:02:59]} 6. Nf3 {[%clk 0:03:02]}  a6 {[%clk 0:02:59]} 7. a4 {[%clk 0:03:02]}  g6 {[%clk 0:02:58]} 8. Nd2 {[%clk 0:03:02]}  Bg7 {[%clk 0:02:58]} 9. Nc4 {[%clk 0:03:02]}  O-O {[%clk 0:02:54]} 10. Bf4 {[%clk 0:03:02]}  Ne8 {[%clk 0:02:49]} 11. Qd2 {[%clk 0:03:02]}  f5 {[%clk 0:02:07]} 12. h4 {[%clk 0:03:01]}  Qf6 {[%clk 0:01:31]} 13. Nb6 {[%clk 0:02:58]} 1-0

[Event "January 2 Late 2024"]
[Site "https://www.chess.com"]
[Date "2024.01.02"]
[Round "11"]
[White "HouseOfDurin"]
[Black "Petr, Jan"]
[Result "0-1"]
[Board "117"]
[TimeControl "180+1"]
[BlackFideId "345784"]
[WhiteElo "2235"]
[BlackElo "2391"]
[BlackTeam "CZE"]
[WhiteClock "0:00:00"]
[BlackClock "0:00:16"]

1. d4 {[%clk 0:02:58]}  Nf6 {[%clk 0:02:50]} 2. Bg5 {[%clk 0:02:58]}  c6 {[%clk 0:02:45]} 3. Bxf6 {[%clk 0:02:58]}  gxf6 {[%clk 0:02:44]} 4. c4 {[%clk 0:02:58]}  Rg8 {[%clk 0:02:44]} 5. g3 {[%clk 0:02:58]}  h5 {[%clk 0:02:26]} 6. h4 {[%clk 0:02:55]}  d5 {[%clk 0:02:26]} 7. e3 {[%clk 0:02:52]}  Bg4 {[%clk 0:02:23]} 8. Qc2 {[%clk 0:02:38]}  e6 {[%clk 0:02:17]} 9. Nc3 {[%clk 0:02:34]}  Na6 {[%clk 0:02:07]} 10. a3 {[%clk 0:02:33]}  Nc7 {[%clk 0:02:06]} 11. c5 {[%clk 0:02:20]}  Bh6 {[%clk 0:02:03]} 12. Be2 {[%clk 0:02:13]}  Qe7 {[%clk 0:01:56]} 13. O-O-O {[%clk 0:02:08]}  b6 {[%clk 0:01:52]} 14. cxb6 {[%clk 0:02:01]}  axb6 {[%clk 0:01:53]} 15. Kb1 {[%clk 0:02:01]}  c5 {[%clk 0:01:46]} 16. f3 {[%clk 0:01:38]}  Bf5 {[%clk 0:01:46]} 17. e4 {[%clk 0:01:37]}  Bh7 {[%clk 0:01:43]} 18. dxc5 {[%clk 0:01:18]}  bxc5 {[%clk 0:01:28]} 19. Nb5 {[%clk 0:01:09]}  Rxg3 {[%clk 0:01:18]} 20. Nxc7+ {[%clk 0:00:54]}  Qxc7 {[%clk 0:01:16]} 21. Bb5+ {[%clk 0:00:54]}  Kf8 {[%clk 0:01:15]} 22. Qh2 {[%clk 0:00:49]}  dxe4 {[%clk 0:01:08]} 23. Ka2 {[%clk 0:00:35]}  Bf4 {[%clk 0:00:57]} 24. Ne2 {[%clk 0:00:23]}  Rxf3 {[%clk 0:00:48]} 25. Nxf4 {[%clk 0:00:23]}  Qxf4 {[%clk 0:00:48]} 26. Qc2 {[%clk 0:00:22]}  Qe5 {[%clk 0:00:30]} 27. Rd7 {[%clk 0:00:12]}  Bg6 {[%clk 0:00:25]} 28. Rhd1 {[%clk 0:00:10]}  Kg7 {[%clk 0:00:24]} 29. Rb7 {[%clk 0:00:08]}  e3 {[%clk 0:00:22]} 30. Qc4 {[%clk 0:00:08]}  Rf2 {[%clk 0:00:22]} 31. Rb1 {[%clk 0:00:07]}  e2 {[%clk 0:00:20]} 32. Bc6 {[%clk 0:00:03]}  Bxb1+ {[%clk 0:00:19]} 33. Kxb1 {[%clk 0:00:03]}  e1=Q+ {[%clk 0:00:20]} 34. Ka2 {[%clk 0:00:01]}  Ra6 {[%clk 0:00:17]} 35. Rxf7+ {[%clk 0:00:02]}  Kxf7 {[%clk 0:00:17]} 36. Qb5 {[%clk 0:00:01]}  Q1e2 {[%clk 0:00:15]} 37. Qxe2 {[%clk 0:00:00]}  Rxe2 {[%clk 0:00:16]} 0-1

[Event "January 2 Late 2024"]
[Site "https://www.chess.com"]
[Date "2024.01.02"]
[Round "11"]
[White "Yushko, Olga"]
[Black "Bazzano, Sebastian"]
[Result "0-1"]
[Board "118"]
[TimeControl "180+1"]
[WhiteFideId "14114500"]
[BlackFideId "104566"]
[WhiteElo "2208"]
[BlackElo "2287"]
[WhiteTeam "UKR"]
[BlackTeam "ARG"]
[WhiteClock "0:00:22"]
[BlackClock "0:00:35"]

1. d4 {[%clk 0:02:57]}  Nf6 {[%clk 0:02:57]} 2. c4 {[%clk 0:02:58]}  c5 {[%clk 0:02:56]} 3. d5 {[%clk 0:02:58]}  e6 {[%clk 0:02:55]} 4. Nc3 {[%clk 0:02:58]}  exd5 {[%clk 0:02:55]} 5. cxd5 {[%clk 0:02:59]}  d6 {[%clk 0:02:56]} 6. e4 {[%clk 0:02:59]}  g6 {[%clk 0:02:56]} 7. Nf3 {[%clk 0:03:00]}  Bg7 {[%clk 0:02:57]} 8. Bd3 {[%clk 0:03:00]}  O-O {[%clk 0:02:55]} 9. O-O {[%clk 0:03:00]}  Bg4 {[%clk 0:02:52]} 10. Bf4 {[%clk 0:02:58]}  a6 {[%clk 0:02:43]} 11. a4 {[%clk 0:02:58]}  Qe7 {[%clk 0:02:39]} 12. Re1 {[%clk 0:02:57]}  Nbd7 {[%clk 0:02:37]} 13. h3 {[%clk 0:02:41]}  Bxf3 {[%clk 0:02:36]} 14. Qxf3 {[%clk 0:02:42]}  Ne5 {[%clk 0:02:36]} 15. Bxe5 {[%clk 0:02:42]}  Qxe5 {[%clk 0:02:37]} 16. a5 {[%clk 0:02:33]}  Nd7 {[%clk 0:02:24]} 17. Rab1 {[%clk 0:02:16]}  Qd4 {[%clk 0:02:18]} 18. Ne2 {[%clk 0:02:13]}  Qb4 {[%clk 0:02:09]} 19. Qe3 {[%clk 0:02:11]}  Qxa5 {[%clk 0:01:59]} 20. f4 {[%clk 0:02:06]}  b5 {[%clk 0:01:58]} 21. Kh1 {[%clk 0:02:03]}  c4 {[%clk 0:01:56]} 22. Bc2 {[%clk 0:02:03]}  Rfe8 {[%clk 0:01:55]} 23. Qg3 {[%clk 0:01:54]}  Qd2 {[%clk 0:01:45]} 24. Bd1 {[%clk 0:01:36]}  Rxe4 {[%clk 0:01:34]} 25. f5 {[%clk 0:01:26]}  Ne5 {[%clk 0:01:18]} 26. fxg6 {[%clk 0:01:19]}  hxg6 {[%clk 0:01:17]} 27. Rf1 {[%clk 0:00:57]}  Rxe2 {[%clk 0:01:11]} 28. Bxe2 {[%clk 0:00:58]}  Qxe2 {[%clk 0:01:11]} 29. Rbe1 {[%clk 0:00:58]}  Qxb2 {[%clk 0:01:11]} 30. Rf2 {[%clk 0:00:57]}  Qb4 {[%clk 0:01:06]} 31. Ref1 {[%clk 0:00:57]}  Qc5 {[%clk 0:00:53]} 32. Qg5 {[%clk 0:00:50]}  c3 {[%clk 0:00:50]} 33. Qe7 {[%clk 0:00:41]}  Rf8 {[%clk 0:00:46]} 34. Rc2 {[%clk 0:00:31]}  b4 {[%clk 0:00:45]} 35. Qb7 {[%clk 0:00:29]}  Qb5 {[%clk 0:00:36]} 36. Qc7 {[%clk 0:00:22]}  Qxf1+ {[%clk 0:00:35]} 0-1

[Event "January 2 Late 2024"]
[Site "https://www.chess.com"]
[Date "2024.01.02"]
[Round "11"]
[White "Sarkar, Justin"]
[Black "Doublekk14"]
[Result "1-0"]
[Board "119"]
[TimeControl "180+1"]
[WhiteFideId "2010011"]
[WhiteElo "2267"]
[BlackElo "2246"]
[WhiteTeam "USA"]
[WhiteClock "0:00:01"]
[BlackClock "0:00:00"]

1. d4 {[%clk 0:02:37]}  Nf6 {[%clk 0:02:54]} 2. c4 {[%clk 0:02:37]}  e6 {[%clk 0:02:54]} 3. Nf3 {[%clk 0:02:32]}  d5 {[%clk 0:02:52]} 4. Bg5 {[%clk 0:02:25]}  Be7 {[%clk 0:02:46]} 5. e3 {[%clk 0:02:22]}  Ne4 {[%clk 0:02:46]} 6. Bxe7 {[%clk 0:02:17]}  Qxe7 {[%clk 0:02:46]} 7. Nc3 {[%clk 0:02:09]}  Nxc3 {[%clk 0:02:44]} 8. bxc3 {[%clk 0:02:08]}  Nc6 {[%clk 0:02:41]} 9. cxd5 {[%clk 0:01:19]}  exd5 {[%clk 0:02:39]} 10. Qb3 {[%clk 0:01:20]}  Qd6 {[%clk 0:02:32]} 11. Bd3 {[%clk 0:01:20]}  h6 {[%clk 0:02:22]} 12. O-O {[%clk 0:01:18]}  O-O {[%clk 0:02:14]} 13. a4 {[%clk 0:01:15]}  b6 {[%clk 0:02:13]} 14. Qa3 {[%clk 0:01:07]}  Qxa3 {[%clk 0:02:10]} 15. Rxa3 {[%clk 0:01:08]}  Bg4 {[%clk 0:02:09]} 16. c4 {[%clk 0:01:00]}  Bxf3 {[%clk 0:02:05]} 17. gxf3 {[%clk 0:00:59]}  dxc4 {[%clk 0:02:06]} 18. Be4 {[%clk 0:00:55]}  Na5 {[%clk 0:02:07]} 19. Bxa8 {[%clk 0:00:54]}  Rxa8 {[%clk 0:02:04]} 20. d5 {[%clk 0:00:54]}  Rd8 {[%clk 0:01:53]} 21. e4 {[%clk 0:00:54]}  Nb3 {[%clk 0:01:49]} 22. Rd1 {[%clk 0:00:45]}  Kf8 {[%clk 0:01:48]} 23. e5 {[%clk 0:00:38]}  Ke7 {[%clk 0:01:39]} 24. f4 {[%clk 0:00:38]}  a5 {[%clk 0:01:29]} 25. h4 {[%clk 0:00:38]}  c5 {[%clk 0:01:22]} 26. h5 {[%clk 0:00:26]}  Nd4 {[%clk 0:01:14]} 27. d6+ {[%clk 0:00:24]}  Ke6 {[%clk 0:01:11]} 28. Kg2 {[%clk 0:00:24]}  Kf5 {[%clk 0:01:07]} 29. Rg3 {[%clk 0:00:21]}  g5 {[%clk 0:01:01]} 30. hxg6 {[%clk 0:00:14]}  fxg6 {[%clk 0:01:00]} 31. Rh1 {[%clk 0:00:08]}  Ne2 {[%clk 0:00:39]} 32. Rf3 {[%clk 0:00:08]}  Nxf4+ {[%clk 0:00:36]} 33. Kg3 {[%clk 0:00:08]}  g5 {[%clk 0:00:36]} 34. Rxh6 {[%clk 0:00:06]}  c3 {[%clk 0:00:36]} 35. e6 {[%clk 0:00:04]}  c2 {[%clk 0:00:27]} 36. Rh1 {[%clk 0:00:03]}  Rxd6 {[%clk 0:00:23]} 37. e7 {[%clk 0:00:02]}  Re6 {[%clk 0:00:23]} 38. Re3 {[%clk 0:00:02]}  c1=Q {[%clk 0:00:05]} 39. Rxc1 {[%clk 0:00:01]}  Ne2+ {[%clk 0:00:06]} 40. Rxe2 {[%clk 0:00:01]}  Rxe2 {[%clk 0:00:04]} 41. Rb1 {[%clk 0:00:01]}  Rxe7 {[%clk 0:00:04]} 42. Rxb6 {[%clk 0:00:01]}  Rc7 {[%clk 0:00:04]} 43. Rb5 {[%clk 0:00:02]}  Ke4 {[%clk 0:00:03]} 44. Rxa5 {[%clk 0:00:02]}  c4 {[%clk 0:00:03]} 45. Rb5 {[%clk 0:00:02]}  c3 {[%clk 0:00:03]} 46. Rb1 {[%clk 0:00:02]}  c2 {[%clk 0:00:04]} 47. Rc1 {[%clk 0:00:02]}  Kd3 {[%clk 0:00:04]} 48. Kg4 {[%clk 0:00:02]}  Rc5 {[%clk 0:00:01]} 49. f3 {[%clk 0:00:01]}  Kd2 {[%clk 0:00:00]} 50. Ra1 {[%clk 0:00:01]} 1-0

[Event "January 2 Late 2024"]
[Site "https://www.chess.com"]
[Date "2024.01.02"]
[Round "11"]
[White "Jing, Andrew"]
[Black "Dmitriev, Sergey"]
[Result "0-1"]
[Board "121"]
[TimeControl "180+1"]
[WhiteFideId "30984076"]
[BlackFideId "14101785"]
[WhiteElo "2169"]
[BlackElo "2037"]
[WhiteTeam "USA"]
[BlackTeam "UKR"]
[WhiteClock "0:02:04"]
[BlackClock "0:01:55"]

1. d4 {[%clk 0:02:57]}  d6 {[%clk 0:02:59]} 2. e4 {[%clk 0:02:53]}  g6 {[%clk 0:02:59]} 3. g3 {[%clk 0:02:52]}  Bg7 {[%clk 0:02:59]} 4. Bg2 {[%clk 0:02:52]}  Nf6 {[%clk 0:02:59]} 5. c4 {[%clk 0:02:52]}  O-O {[%clk 0:02:59]} 6. Nc3 {[%clk 0:02:52]}  Nc6 {[%clk 0:02:58]} 7. Nf3 {[%clk 0:02:50]}  Bg4 {[%clk 0:02:57]} 8. O-O {[%clk 0:02:49]}  e5 {[%clk 0:02:53]} 9. d5 {[%clk 0:02:49]}  Nd4 {[%clk 0:02:52]} 10. h3 {[%clk 0:02:48]}  Nxf3+ {[%clk 0:02:51]} 11. Bxf3 {[%clk 0:02:49]}  Bxh3 {[%clk 0:02:51]} 12. Bg2 {[%clk 0:02:49]}  Qd7 {[%clk 0:02:46]} 13. f4 {[%clk 0:02:45]}  exf4 {[%clk 0:02:38]} 14. Bxf4 {[%clk 0:02:42]}  Bxg2 {[%clk 0:02:35]} 15. Kxg2 {[%clk 0:02:42]}  Nh5 {[%clk 0:02:33]} 16. Qf3 {[%clk 0:02:41]}  Nxf4+ {[%clk 0:02:26]} 17. gxf4 {[%clk 0:02:42]}  f5 {[%clk 0:02:25]} 18. Rae1 {[%clk 0:02:39]}  Rae8 {[%clk 0:02:17]} 19. Re2 {[%clk 0:02:28]}  Bxc3 {[%clk 0:02:11]} 20. bxc3 {[%clk 0:02:27]}  fxe4 {[%clk 0:02:09]} 21. Rxe4 {[%clk 0:02:17]}  Rxe4 {[%clk 0:02:08]} 22. Qxe4 {[%clk 0:02:16]}  Qg4+ {[%clk 0:02:09]} 23. Kh2 {[%clk 0:02:15]}  Rf5 {[%clk 0:01:59]} 24. Qe8+ {[%clk 0:02:05]}  Kg7 {[%clk 0:01:59]} 25. Qe7+ {[%clk 0:02:05]}  Kh6 {[%clk 0:01:56]} 26. Qe4 {[%clk 0:02:04]}  Rh5# {[%clk 0:01:55]} 0-1

[Event "January 2 Late 2024"]
[Site "https://www.chess.com"]
[Date "2024.01.02"]
[Round "11"]
[White "Gavrilov, Maxim"]
[Black "Delgado Kuffo, Andres"]
[Result "0-1"]
[Board "122"]
[TimeControl "180+1"]
[WhiteFideId "24271454"]
[BlackFideId "3600475"]
[WhiteElo "2450"]
[BlackElo "2254"]
[WhiteTeam "RUS"]
[BlackTeam "ECU"]
[WhiteClock "0:00:00"]
[BlackClock "0:00:06"]

1. d4 {[%clk 0:03:00]}  Nf6 {[%clk 0:02:59]} 2. Nf3 {[%clk 0:03:00]}  c5 {[%clk 0:02:59]} 3. d5 {[%clk 0:03:00]}  b5 {[%clk 0:02:58]} 4. e4 {[%clk 0:02:18]}  Nxe4 {[%clk 0:02:56]} 5. Bxb5 {[%clk 0:02:18]}  Qa5+ {[%clk 0:02:56]} 6. Nc3 {[%clk 0:02:16]}  Nxc3 {[%clk 0:02:55]} 7. bxc3 {[%clk 0:02:16]}  Qxb5 {[%clk 0:02:53]} 8. Nd2 {[%clk 0:02:11]}  c4 {[%clk 0:02:38]} 9. Nf3 {[%clk 0:02:08]}  Bb7 {[%clk 0:02:36]} 10. O-O {[%clk 0:02:06]}  Qxd5 {[%clk 0:02:36]} 11. Qe1 {[%clk 0:02:04]}  Nc6 {[%clk 0:02:30]} 12. Be3 {[%clk 0:02:04]}  Ne5 {[%clk 0:02:28]} 13. Nh4 {[%clk 0:01:57]}  Qe4 {[%clk 0:02:25]} 14. f3 {[%clk 0:01:55]}  Qxc2 {[%clk 0:02:18]} 15. Bd4 {[%clk 0:01:41]}  Ng6 {[%clk 0:01:54]} 16. Rc1 {[%clk 0:01:33]}  Qa4 {[%clk 0:01:50]} 17. Nf5 {[%clk 0:01:33]}  Qc6 {[%clk 0:01:32]} 18. Rb1 {[%clk 0:01:28]}  f6 {[%clk 0:01:16]} 19. Rxb7 {[%clk 0:01:25]}  e5 {[%clk 0:01:03]} 20. Rb2 {[%clk 0:00:56]}  Qe6 {[%clk 0:00:56]} 21. Qb1 {[%clk 0:00:20]}  exd4 {[%clk 0:00:40]} 22. Re1 {[%clk 0:00:20]}  Ne5 {[%clk 0:00:41]} 23. cxd4 {[%clk 0:00:19]}  Kf7 {[%clk 0:00:39]} 24. dxe5 {[%clk 0:00:19]}  Bc5+ {[%clk 0:00:37]} 25. Kh1 {[%clk 0:00:19]}  fxe5 {[%clk 0:00:37]} 26. Rbe2 {[%clk 0:00:18]}  Rhe8 {[%clk 0:00:29]} 27. Qe4 {[%clk 0:00:14]}  d5 {[%clk 0:00:20]} 28. Qg4 {[%clk 0:00:14]}  Qf6 {[%clk 0:00:19]} 29. h4 {[%clk 0:00:08]}  Kg8 {[%clk 0:00:18]} 30. h5 {[%clk 0:00:08]}  Bf8 {[%clk 0:00:18]} 31. Kh2 {[%clk 0:00:08]}  g6 {[%clk 0:00:17]} 32. Ng3 {[%clk 0:00:06]}  Bg7 {[%clk 0:00:14]} 33. hxg6 {[%clk 0:00:06]}  Qxg6 {[%clk 0:00:14]} 34. Qd7 {[%clk 0:00:05]}  Rad8 {[%clk 0:00:11]} 35. Qxa7 {[%clk 0:00:05]}  d4 {[%clk 0:00:10]} 36. Qa4 {[%clk 0:00:04]}  Qf7 {[%clk 0:00:08]} 37. Re4 {[%clk 0:00:03]}  c3 {[%clk 0:00:07]} 38. Rg4 {[%clk 0:00:00]}  Kh8 {[%clk 0:00:06]} 0-1